bitfinex-derivatives/quotes_ETHF0:USTF0_20250404
["timestamp","ask_amount","ask_price","bid_price","bid_amount"]
[1743783330713,0.00833797,1799.5,1799.4,3.6119]
[1743783330922,3.2078,1800.2,1799.6,2.77933]
[1743783331116,8.4142,1800.3,1799.9,40.8]
[1743783331309,1.1115,1800.1,1799.9,40.8]
[1743783331514,1.11149,1800.1,1800.0,1.11149]
[1743783331717,6.898,1800.4,1800.2,1.11139]
[1743783331912,6.898,1800.4,1799.9,40.8]
[1743783332122,3.2078,1800.2,1800.1,1.11147]
[1743783332323,6.898,1800.4,1800.1,1.11980797]
[1743783332626,4.3191,1800.4,1800.3,1.11134]
[1743783332824,1.11136,1800.3,1800.1,0.00833797]
[1743783333024,4.31913,1800.4,1800.3,1.11134]
[1743783333228,1.1114,1800.2,1800.1,1.11977797]
[1743783333421,4.3192,1800.2,1800.1,0.00833797]
[1743783334125,1.1114,1800.2,1800.1,0.00833797]
[1743783334326,3.2078,1800.2,1800.1,1.11980797]
[1743783334527,6.898,1800.4,1800.1,1.11980797]
[1743783334729,4.31915,1800.3,1800.2,1.11134]
[1743783334927,3.2078,1800.3,1800.1,0.00833797]
[1743783335125,4.31916,1800.3,1800.2,1.1114]
[1743783335430,3.2078,1800.3,1800.2,1.1114]
[1743783335635,4.31914,1800.3,1800.2,1.1114]
[1743783335927,0.00833797,1800.5,1800.4,1.11128]
[1743783336924,0.00833797,1800.5,1800.4,3.61128]
[1743783337227,3.2078,1800.9,1800.8,1.11103]
[1743783337529,1.11105,1800.8,1800.7,1.11106]
[1743783337732,3.2078,1800.9,1800.5,2.77797]
[1743783338027,4.31892,1800.7,1800.6,1.11113]
[1743783338227,3.2078,1800.7,1800.5,1.11117]
[1743783338529,4.31893,1800.7,1800.6,1.11116]
[1743783338725,1.11123,1800.5,1800.4,1.11124]
[1743783338924,5.98556,1800.7,1800.3,2.8035]
[1743783339228,1.11134,1800.3,1800.2,1.11138]
[1743783339429,1.1114,1800.2,1800.1,0.00833797]
[1743783339631,4.7588,1800.2,1800.1,0.00833797]
[1743783340326,9.4818,1800.2,1800.1,0.00833797]
[1743783340522,1.11166,1799.8,1799.7,1.11168]
[1743783340830,3.2078,1799.8,1799.7,1.11171]
[1743783341129,1.11176,1799.7,1799.5,1.11184]
[1743783341334,1.11187,1799.5,1799.4,1.11189]
[1743783341633,1.11184,1799.5,1799.4,41.91189]
[1743783341825,4.98304,1799.5,1799.4,40.8]
[1743783342725,1.11209,1799.1,1798.9,1.11217]
[1743783342928,8.05095,1799.0,1798.8,5.00972]
[1743783343230,8.05095,1799.0,1798.9,41.91221]
[1743783343231,6.9388,1799.0,1798.9,41.91221]
[1743783343425,8.05095,1799.0,1798.9,40.8]
[1743783343821,6.9388,1799.0,1798.9,40.8]
[1743783344222,8.05095,1799.0,1798.9,40.8]
[1743783345022,2.78124,1798.5,1797.8,2.8473]
[1743783345224,3.2078,1798.0,1797.8,3.8975]
[1743783345524,4.32056,1798.0,1797.9,40.8]
[1743783345725,9.04456,1798.0,1797.9,40.8]
[1743783345924,7.9318,1798.0,1797.9,40.8]
[1743783346327,7.9318,1798.0,1797.9,41.91283]
[1743783346628,0.00833797,1798.1,1798.0,1.11276]
[1743783346824,0.00833797,1798.1,1798.0,4.79486]
[1743783347024,3.2078,1798.2,1798.0,3.6821]
[1743783347227,3.2078,1798.4,1798.0,3.6821]
[1743783347429,1.11259,1798.3,1798.1,1.1127]
[1743783347627,1.11259,1798.3,1798.2,3.6821]
[1743783347830,4.32039,1798.3,1798.2,3.6821]
[1743783348631,3.2078,1798.3,1798.2,3.6821]
[1743783348831,4.32038,1798.3,1798.2,3.6821]
[1743783349129,3.2078,1798.3,1798.2,3.6821]
[1743783349337,0.00833797,1798.4,1798.2,4.79471]
[1743783349531,1.12087797,1798.4,1798.3,1.11258]
[1743783349728,0.00833797,1798.4,1798.3,1.11258]
[1743783350236,1.11233,1798.8,1798.7,1.11233]
[1743783350534,1.11232,1798.8,1798.6,1.11236]
[1743783350834,1.11232,1798.8,1798.7,44.6285]
[1743783351530,7.94213797,1798.9,1798.8,1.11227]
[1743783351834,0.00833797,1798.9,1798.8,1.11227]
[1743783352235,4.31975,1799.4,1798.9,2.78048]
[1743783352425,3.2078,1799.4,1798.9,3.8483]
[1743783352832,3.2078,1799.4,1799.1,1.11206]
[1743783353034,1.112,1799.3,1799.2,3.8483]
[1743783353230,4.31974,1799.4,1799.2,3.8483]
[1743783353434,4.32807797,1799.4,1799.3,1.11196]
[1743783353635,3.21613797,1799.4,1799.3,1.11196]
[1743783353823,4.32807797,1799.4,1799.2,3.8483]
[1743783354026,4.32805797,1799.4,1799.3,1.11196]
[1743783354222,0.00833797,1799.4,1799.3,1.11196]
[1743783354435,0.00833797,1799.4,1799.3,3.61196]
[1743783355329,3.2078,1799.7,1799.3,5.5348]
[1743783355531,1.11185,1799.5,1799.4,3.7644]
[1743783356037,1.11184,1799.5,1799.4,3.7644]
[1743783356228,3.7122,1799.6,1799.5,1.11184]
[1743783356430,3.7122,1799.6,1799.4,3.7644]
[1743783356625,4.31964,1799.5,1799.4,3.7644]
[1743783356833,1.11202,1799.2,1799.1,0.00833797]
[1743783357029,9.04582,1799.2,1799.1,0.00833797]
[1743783357234,1.11219,1799.0,1798.9,1.11221]
[1743783357427,3.2078,1799.0,1798.9,1.11221]
[1743783357827,3.2078,1799.0,1798.8,1.11222]
[1743783358028,1.11227,1798.8,1798.7,41.91229]
[1743783358241,1.11227,1798.8,1798.7,40.8]
[1743783358242,4.32007,1798.8,1798.7,40.8]
[1743783358437,1.11233,1798.7,1798.6,0.00833797]
[1743783358736,3.8394,1798.7,1798.6,1.12072797]
[1743783358937,4.95173,1798.7,1798.6,1.12072797]
[1743783359135,3.8394,1798.7,1798.6,1.12072797]
[1743783359439,4.95173,1798.7,1798.6,0.00833797]
[1743783359734,8.00773,1798.7,1798.6,0.00833797]
[1743783360128,4.95173,1798.7,1798.6,0.00833797]
[1743783361739,7.45173,1798.7,1798.6,0.00833797]
[1743783362737,1.11264,1798.2,1798.1,3.6784]
[1743783362944,4.32044,1798.2,1797.9,1.11283]
[1743783363142,3.2078,1798.2,1798.0,41.91276]
[1743783363346,4.32047,1798.2,1798.1,3.6784]
[1743783363546,3.2078,1798.2,1798.1,3.6784]
[1743783363742,4.32044,1798.2,1798.1,3.6784]
[1743783363943,3.2078,1798.2,1798.1,4.7911]
[1743783364337,3.2078,1798.6,1798.5,1.11246]
[1743783364544,3.21613797,1798.9,1798.3,2.78144]
[1743783364844,3.21613797,1798.9,1798.8,1.11227]
[1743783365043,0.00833797,1798.9,1798.8,1.11227]
[1743783365343,1.11227,1798.8,1798.7,3.8233]
[1743783365545,1.11227,1798.8,1798.7,44.6233]
[1743783366046,3.21613797,1798.9,1798.7,44.6233]
[1743783366251,0.00833797,1798.9,1798.8,1.11227]
[1743783366436,3.21613797,1798.9,1798.7,44.6233]
[1743783366641,3.21613797,1798.9,1798.8,1.11227]
[1743783366947,4.32837797,1798.9,1798.7,45.73558]
[1743783367143,4.32838797,1798.9,1798.7,45.73561]
[1743783367440,4.32838797,1798.9,1798.7,44.6233]
[1743783367441,1.11227,1798.8,1798.7,44.6233]
[1743783368145,1.11227,1798.8,1798.5,1.11243]
[1743783368146,1.11233,1798.7,1798.5,1.11243]
[1743783368342,1.11233,1798.7,1798.2,5.62108]
[1743783368343,1.11233,1798.7,1798.6,3.5586]
[1743783368543,4.32013,1798.7,1798.6,44.3586]
[1743783368745,3.2078,1798.8,1798.6,44.3586]
[1743783368943,1.11227,1798.8,1798.7,3.5586]
[1743783369148,3.2078,1798.8,1798.7,3.5586]
[1743783369347,3.2078,1798.8,1798.7,4.67093]
[1743783369550,0.00833797,1798.9,1798.8,1.11227]
[1743783369744,1.11227,1798.8,1798.7,3.5586]
[1743783370048,4.32007,1798.8,1798.7,3.5586]
[1743783370446,5.00557797,1798.9,1798.8,1.11227]
[1743783370636,3.89333797,1798.9,1798.8,1.11227]
[1743783370837,3.89333797,1798.9,1798.7,3.5586]
[1743783371142,10.7136,1798.8,1798.2,5.75]
[1743783371346,1.11252,1798.4,1798.3,3.6301]
[1743783371743,7.9328,1798.5,1798.0,0.00833797]
[1743783371943,1.1127,1798.1,1798.0,0.00833797]
[1743783372140,2.78207,1798.0,1797.4,5.7849]
[1743783372344,1.11314,1797.4,1797.2,1.11324]
[1743783372550,1.11314,1797.4,1797.3,3.6301]
[1743783372850,1.11314,1797.4,1797.3,40.8]
[1743783372851,3.885,1797.4,1797.3,40.8]
[1743783373045,1.11314,1797.4,1797.3,40.8]
[1743783373546,1.1132,1797.3,1797.2,0.00833797]
[1743783373749,1.11345,1796.9,1796.8,10.6643938]
[1743783373947,9.04625,1796.9,1796.8,9.4651238]
[1743783374143,11.54625,1796.9,1796.8,9.4651238]
[1743783374750,9.04625,1796.9,1796.8,9.4651238]
[1743783375653,11.54625,1796.9,1796.8,9.4651238]
[1743783375964,11.54625,1796.9,1796.5,19.01543407]
[1743783375965,1.11363,1796.6,1796.5,19.01543407]
[1743783376144,5.83963,1796.6,1796.5,15.04794239]
[1743783376345,5.83963,1796.6,1796.0,40.8]
[1743783376346,1.11394,1796.1,1796.0,40.8]
[1743783376556,9.04774,1796.1,1796.0,40.8]
[1743783376744,2.78517,1795.9,1795.2,3.56]
[1743783377052,3.2078,1795.3,1795.2,3.56]
[1743783377354,3.2078,1795.3,1795.2,44.36]
[1743783377547,3.2078,1795.3,1795.2,51.04090797]
[1743783377849,4.32224,1795.3,1795.2,49.92640797]
[1743783378050,9.05024,1795.3,1795.2,5.56640797]
[1743783378548,3.2078,1795.3,1795.2,5.56640797]
[1743783378745,3.2078,1795.3,1795.2,12.74090797]
[1743783378950,3.2078,1795.6,1795.2,11.62640797]
[1743783379151,3.2078,1795.6,1795.4,1.11433]
[1743783379349,3.2078,1795.6,1795.5,10.08311797]
[1743783379652,0.00833797,1795.7,1795.5,3.4024]
[1743783379850,0.00833797,1795.7,1795.6,6.68065797]
[1743783380751,0.00833797,1795.7,1795.6,9.18065797]
[1743783380960,0.00833797,1795.7,1795.6,5.56640797]
[1743783381155,1.12252797,1795.7,1795.6,5.56640797]
[1743783381659,0.00833797,1795.7,1795.6,5.56640797]
[1743783382251,0.00833797,1795.7,1795.6,6.68065797]
[1743783382647,0.00833797,1795.7,1795.5,3.4024]
[1743783382953,3.2078,1795.6,1795.5,8.96880797]
[1743783383156,4.32205,1795.6,1795.5,8.96880797]
[1743783383755,1.1145,1795.2,1795.1,0.00833797]
[1743783383944,4.3223,1795.2,1795.1,3.50583797]
[1743783384149,3.2078,1795.2,1795.1,49.87224594]
[1743783384749,3.2078,1795.2,1795.1,50.98680594]
[1743783384952,3.2078,1795.2,1795.1,49.87224594]
[1743783385256,4.3223,1795.2,1795.1,49.87224594]
[1743783385757,3.2078,1795.2,1795.1,49.87224594]
[1743783386053,3.2078,1795.2,1795.1,50.98680594]
[1743783386351,4.3222,1795.4,1795.1,49.87224594]
[1743783386549,3.2078,1795.3,1795.2,9.27050797]
[1743783387058,1.1145,1795.2,1795.1,40.80833797]
[1743783387257,1.1145,1795.2,1795.1,46.37474594]
[1743783387752,1.1145,1795.2,1795.1,50.07884594]
[1743783388247,1.1145,1795.2,1795.1,9.27884594]
[1743783388958,1.1145,1795.2,1795.1,50.07884594]
[1743783390156,7.9378,1795.3,1795.1,50.07884594]
[1743783390454,9.05228,1795.3,1795.2,9.23820797]
[1743783390656,3.2078,1795.3,1795.2,10.35270797]
[1743783391158,4.32224,1795.3,1795.2,9.23820797]
[1743783392359,1.1145,1795.2,1795.1,40.80833797]
[1743783392560,9.6066,1795.2,1795.1,46.37474594]
[1743783392857,9.6066,1795.2,1795.1,5.57474594]
[1743783393565,9.6066,1795.2,1795.1,9.21174594]
[1743783394860,5.8465,1795.2,1795.1,9.21174594]
[1743783395762,5.8465,1795.2,1795.1,0.00833797]
[1743783395984,12.5893,1795.2,1795.1,7.97e-06]
[1743783397655,10.0903,1795.2,1795.1,7.97e-06]
[1743783398056,1.6721,1795.2,1795.1,7.97e-06]
[1743783398262,5.8475,1795.2,1795.1,5.56641594]
[1743783398665,4.733,1795.2,1795.1,5.56641594]
[1743783398962,5.8475,1795.2,1795.1,5.56641594]
[1743783401171,11.8721,1795.2,1795.1,7.97e-06]
[1743783402367,12.31703702,1795.2,1795.1,7.97e-06]
[1743783403261,9.81703702,1795.2,1795.1,7.97e-06]
[1743783403470,6.29243702,1795.2,1795.1,5.56641594]
[1743783403763,6.29243702,1795.2,1794.8,3.6388]
[1743783403764,3.2078,1794.8,1793.4,5.87]
[1743783403969,3.2078,1793.7,1793.6,2.9919]
[1743783404265,3.2078,1793.7,1793.6,43.7919]
[1743783404566,3.2078,1793.7,1793.6,48.16771594]
[1743783404871,4.32323,1793.7,1793.6,7.36771594]
[1743783405870,4.32323,1793.7,1793.6,4.37581594]
[1743783406370,7.74243,1793.7,1793.6,4.37581594]
[1743783406975,1.11549,1793.6,1793.5,0.00564152]
[1743783407171,4.45509,1793.6,1793.5,4.38145746]
[1743783408067,5.84949,1793.6,1793.5,4.38145746]
[1743783408973,9.18909,1793.6,1793.5,4.38145746]
[1743783409666,5.84949,1793.6,1793.5,4.38145746]
[1743783409866,1.11549,1793.6,1793.5,4.38145746]
[1743783410979,4.60929,1793.6,1793.5,0.00564152]
[1743783411166,1.11549,1793.6,1793.5,4.38145746]
[1743783411366,3.2078,1793.7,1793.5,4.38145746]
[1743783411569,4.32323,1793.7,1793.6,7.77771594]
[1743783411779,3.2078,1793.7,1793.6,7.77771594]
[1743783411969,3.2078,1793.7,1793.6,8.89320594]
[1743783412163,4.32323,1793.7,1793.6,7.77771594]
[1743783413075,3.2078,1793.7,1793.6,7.77771594]
[1743783413474,5.29896284,1793.8,1793.6,7.77771594]
[1743783413475,0.56596284,1793.8,1793.6,24.08951594]
[1743783413668,3.2078,1794.5,1793.7,6.22778]
[1743783413870,3.2078,1794.3,1793.9,3.2078]
[1743783414170,4.734,1794.5,1794.0,47.02731]
[1743783414372,3.2078,1794.7,1794.2,5.9956]
[1743783414576,1.11489,1794.6,1794.4,1.115]
[1743783414774,0.00836284,1794.6,1794.5,7.81501594]
[1743783414968,0.00836284,1794.6,1794.5,4.55414]
[1743783415176,1.11478,1794.8,1794.6,1.11483]
[1743783415376,1.11478,1794.8,1794.7,3.4392]
[1743783415675,1.11478,1794.8,1794.7,7.81501594]
[1743783415876,1.11465,1795.0,1794.7,10.31501594]
[1743783416070,3.7654,1795.1,1794.9,1.11469]
[1743783416071,4.32242,1795.1,1794.9,1.11469]
[1743783416272,1.11456,1795.1,1795.0,3.4216]
[1743783416473,1.11456,1795.1,1795.0,8.91203594]
[1743783416767,1.12288284,1795.2,1795.0,7.79741594]
[1743783416973,0.00836284,1795.2,1795.1,5.49037594]
[1743783417170,0.00836284,1795.2,1795.1,4.37581594]
[1743783417368,4.33066284,1795.2,1795.1,4.37581594]
[1743783418182,1.11456,1795.1,1795.0,3.4216]
[1743783418373,4.53736,1795.1,1795.0,7.79741594]
[1743783419081,1.11456,1795.1,1795.0,7.79741594]
[1743783419680,3.21616284,1795.2,1795.0,7.79741594]
[1743783419880,1.11456,1795.1,1795.0,3.4216]
[1743783420278,1.11469,1794.9,1794.8,0.00836284]
[1743783420474,4.32249,1794.9,1794.8,7.92867878]
[1743783420783,2.78693,1794.8,1794.3,5.49083594]
[1743783421080,3.2078,1794.5,1794.4,1.115]
[1743783421669,4.32274,1794.5,1794.3,1.11502]
[1743783421869,3.2078,1794.5,1794.3,0.00836284]
[1743783422175,5.847,1794.4,1794.3,0.00836284]
[1743783422378,9.4303,1794.4,1794.3,0.00836284]
[1743783422574,14.16041,1794.4,1793.6,2.78874]
[1743783422779,3.2078,1794.0,1793.6,5.99654]
[1743783422984,1.11531,1793.9,1793.7,40.8]
[1743783423282,3.2078,1794.0,1793.7,41.9154]
[1743783423471,1.11535,1793.9,1793.7,41.9154]
[1743783423676,3.21616284,1794.0,1793.7,40.80564152]
[1743783423879,1.11531,1793.9,1793.7,41.92105152]
[1743783424078,3.21616284,1794.0,1793.8,4.67826]
[1743783424279,4.33141284,1794.0,1793.9,3.5629]
[1743783425275,1.11502,1794.4,1794.0,2.78806]
[1743783425482,1.11508,1794.3,1794.2,1.11512]
[1743783425684,1.11503,1794.4,1794.2,3.4434]
[1743783425876,1.11503,1794.4,1794.3,1.11504]
[1743783426186,1.11499,1794.5,1794.2,3.4434]
[1743783426377,1.11489,1794.6,1794.3,2.78751]
[1743783426579,1.11484,1794.7,1794.6,1.11484]
[1743783426884,0.00836284,1794.6,1794.5,1.11494]
[1743783427284,0.00836284,1794.6,1794.5,3.61494]
[1743783427782,1.1147,1794.9,1794.8,1.11469]
[1743783427977,1.1147,1794.9,1794.3,5.87]
[1743783427978,1.11475,1794.8,1793.9,1.11527]
[1743783428189,1.11531,1793.9,1793.8,5.87]
[1743783428372,1.11541,1793.8,1793.7,1.11537]
[1743783428578,1.11549,1793.6,1793.5,40.8]
[1743783428877,1.11549,1793.6,1793.5,41.91556]
[1743783429079,1.11549,1793.6,1793.5,43.3]
[1743783429280,1.11556,1793.5,1793.4,2.90996284]
[1743783429476,3.2078,1793.6,1793.4,4.02556284]
[1743783429683,3.2078,1793.6,1793.4,2.90996284]
[1743783429881,4.32334,1793.6,1793.5,40.8]
[1743783430082,1.11556,1793.5,1793.4,2.90996284]
[1743783430288,1.11556,1793.5,1793.4,0.00836284]
[1743783431984,4.81376,1793.5,1793.4,0.00836284]
[1743783432688,1.11566,1793.4,1793.1,7.08886]
[1743783432883,4.32354,1793.2,1793.1,5.9731]
[1743783433085,1.11599,1792.8,1792.7,5.87]
[1743783433480,2.79014,1792.7,1792.0,0.09706517]
[1743783433687,3.2078,1792.4,1791.9,6.98652]
[1743783433880,2.79054,1792.5,1792.2,0.00836284]
[1743783433881,1.1163,1792.3,1792.2,0.00836284]
[1743783434085,4.732,1792.3,1792.2,1.12473284]
[1743783434784,0.00836284,1792.5,1792.2,2.50836284]
[1743783434988,1.12456284,1792.5,1792.2,1.12467284]
[1743783435282,3.2078,1792.4,1792.2,0.00836284]
[1743783435486,1.1163,1792.3,1792.2,0.00836284]
[1743783435993,4.7738,1792.3,1792.2,0.00836284]
[1743783436190,1.11655,1791.9,1791.8,8.59959792]
[1743783436484,5.84951,1792.0,1791.8,9.71619792]
[1743783436683,5.84949,1792.0,1791.8,50.51616792]
[1743783436884,4.733,1792.0,1791.8,49.39959792]
[1743783437093,4.733,1792.0,1791.8,40.8]
[1743783437284,9.66873,1791.9,1791.7,0.00564152]
[1743783437485,5.99952,1791.7,1790.5,3.2078]
[1743783437688,2.79158,1791.8,1790.6,40.8]
[1743783437689,1.11732,1790.7,1790.6,40.8]
[1743783437885,3.2078,1790.7,1790.3,24.98176928]
[1743783438088,3.2078,1791.0,1790.4,11.80739792]
[1743783438284,3.2078,1791.4,1790.8,1.11721]
[1743783438487,3.2078,1791.4,1790.6,7.9418]
[1743783438488,1.11701,1791.2,1790.6,7.9418]
[1743783438681,4.79481284,1791.3,1790.8,3.2078]
[1743783438979,1.11707,1791.1,1790.8,3.2078]
[1743783439184,1.11706,1791.1,1790.8,3.2078]
[1743783439384,1.11706,1791.1,1790.8,4.325]
[1743783439893,3.2078,1791.1,1790.5,40.8]
[1743783440088,3.2078,1791.1,1790.7,3.2078]
[1743783440393,1.11726,1790.8,1790.5,41.91739]
[1743783440692,1.11726,1790.8,1790.6,1.11736]
[1743783440998,4.69586,1791.0,1790.7,1.11727]
[1743783441291,0.00836284,1791.3,1790.8,1.11721]
[1743783441592,1.11699,1791.2,1791.0,1.1171]
[1743783441790,1.11711,1791.0,1790.9,6.7205]
[1743783442487,4.69571,1791.2,1791.0,1.11711]
[1743783442789,6.44063478,1792.1,1791.1,14.93830294]
[1743783442992,3.2078,1791.9,1791.2,3.2078]
[1743783443188,1.11686,1791.4,1791.3,3.6046]
[1743783444388,1.11693,1791.3,1791.2,0.00836284]
[1743783445794,5.93592,1791.4,1791.2,0.00836284]
[1743783445999,1.11693,1791.3,1791.2,3.49986284]
[1743783446301,3.3218,1791.3,1791.2,3.49986284]
[1743783446496,4.43873,1791.3,1791.2,3.49986284]
[1743783446696,1.11689,1791.4,1791.2,4.61683284]
[1743783447003,0.00836284,1791.5,1791.4,1.11686]
[1743783447891,0.00836284,1791.5,1791.4,4.32466]
[1743783448092,0.00836284,1791.5,1791.4,6.82466]
[1743783448289,1.1166,1791.9,1791.7,1.11664]
[1743783448486,1.1166,1791.9,1791.8,3.4915]
[1743783448697,14.11485,1792.0,1791.4,1.11682]
[1743783448901,1.11672,1791.7,1791.5,1.1168]
[1743783449094,2.8069,1792.2,1791.6,3.5053]
[1743783449395,4.806,1792.3,1792.1,1.11641]
[1743783449601,0.00836284,1792.1,1792.0,4.32424]
[1743783449794,0.00836284,1792.1,1792.0,1.11644]
[1743783449993,1.12481284,1792.1,1791.8,44.0078]
[1743783450191,1.12482284,1792.1,1791.9,1.1165]
[1743783450501,1.12481284,1792.1,1792.0,1.11649]
[1743783450800,1.12479284,1792.1,1792.0,3.2078]
[1743783451098,0.00836284,1792.1,1792.0,4.32429]
[1743783451794,1.12479284,1792.1,1792.0,3.2078]
[1743783451996,0.00836284,1792.1,1792.0,4.32429]
[1743783452194,1.12479284,1792.1,1792.0,3.2078]
[1743783452399,0.00836284,1792.1,1792.0,4.32429]
[1743783453297,0.00836284,1792.1,1792.0,6.82429]
[1743783453899,0.00836284,1792.1,1792.0,1.11649]
[1743783454305,1.12479284,1792.1,1792.0,1.11649]
[1743783454507,1.11651,1792.0,1791.9,1.1165]
[1743783454704,1.12483284,1792.1,1792.0,1.11649]
[1743783455005,1.11653,1792.0,1791.9,1.11652]
[1743783455395,4.70713284,1792.1,1792.0,1.11649]
[1743783455598,3.59066284,1792.1,1792.0,1.11649]
[1743783455799,0.00836284,1792.1,1792.0,4.32429]
[1743783455993,0.00836284,1792.1,1792.0,1.11649]
[1743783456506,0.00836284,1792.1,1792.0,4.32429]
[1743783456893,0.00836284,1792.1,1792.0,1.11649]
[1743783457302,0.00836284,1792.1,1792.0,4.32429]
[1743783457502,3.2078,1792.6,1792.4,1.11618]
[1743783457803,1.11616,1792.6,1792.5,1.11618]
[1743783458100,1.11616,1792.6,1792.2,5.99864]
[1743783458310,1.11621,1792.5,1792.4,1.1162]
[1743783458509,3.6475,1792.6,1792.4,1.1162]
[1743783458807,0.00836284,1792.6,1792.5,1.11618]
[1743783459505,0.00836284,1792.6,1792.5,6.82398]
[1743783459810,3.2078,1793.7,1793.1,2.78952]
[1743783460110,3.6475,1794.2,1793.8,1.11532]
[1743783460304,3.2078,1794.0,1793.6,3.2078]
[1743783460505,5.99623,1793.8,1793.4,4.3234]
[1743783460694,5.99623,1793.8,1793.5,1.11556]
[1743783460695,1.11547,1793.7,1793.5,1.11556]
[1743783461005,4.70417,1793.7,1793.6,0.00836284]
[1743783461605,7.20417,1793.7,1793.6,0.00836284]
[1743783461804,7.20417,1793.7,1792.7,2.79006]
[1743783461805,2.78874,1793.6,1793.1,3.6013]
[1743783462007,1.11565,1793.4,1793.1,3.6013]
[1743783462208,4.751,1793.4,1793.3,1.11568]
[1743783462396,4.70424,1793.6,1793.3,1.11568]
[1743783462706,3.5887,1793.6,1793.1,6.39078]
[1743783462912,3.5887,1793.6,1793.5,1.11556]
[1743783463104,3.7662,1793.9,1793.3,0.00836284]
[1743783463404,6.37714,1793.8,1793.3,0.00836284]
[1743783463608,1.11562,1793.4,1793.3,0.00836284]
[1743783464111,4.32342,1793.4,1793.3,0.00836284]
[1743783464304,2.78933,1793.3,1792.8,1.11595]
[1743783464500,1.11596,1792.9,1792.7,1.11602]
[1743783464705,1.11596,1792.9,1792.8,3.3035]
[1743783464706,9.09576,1792.9,1792.8,3.3035]
[1743783464911,1.11607,1792.7,1792.5,1.11616]
[1743783465110,4.32387,1792.7,1792.6,3.3035]
[1743783466110,1.11612,1792.6,1792.5,0.00836284]
[1743783466302,5.87212,1792.6,1792.5,0.00836284]
[1743783466503,9.51322,1792.6,1792.5,0.00836284]
[1743783467007,0.00836284,1792.8,1792.7,1.11605]
[1743783468008,3.2078,1793.1,1792.7,2.5]
[1743783468201,1.11588,1793.0,1792.8,3.4488]
[1743783468401,4.32362,1793.1,1792.9,40.8]
[1743783468606,4.32362,1793.1,1793.0,3.4488]
[1743783469206,7.92622,1793.1,1793.0,3.4488]
[1743783469714,1.12412284,1793.2,1793.1,1.11581]
[1743783469913,0.00836284,1793.2,1793.1,1.11581]
[1743783470407,1.11562,1793.4,1793.3,1.11563]
[1743783470607,1.11568,1793.3,1793.2,3.3647]
[1743783471110,4.32348,1793.3,1793.2,3.3647]
[1743783471410,1.11574,1793.2,1793.1,40.8]
[1743783471704,1.11574,1793.2,1793.1,3.3647]
[1743783471911,1.11593,1792.9,1792.8,1.11597]
[1743783472106,6.31621,1793.2,1792.7,6.0739]
[1743783472310,1.11595,1792.9,1792.8,1.11595]
[1743783472511,3.5268,1793.2,1792.7,6.0739]
[1743783472713,1.11592,1793.0,1792.9,1.11591]
[1743783473113,1.11592,1793.0,1792.9,41.91591]
[1743783473312,1.11592,1793.0,1792.9,40.8]
[1743783473813,4.64792,1793.0,1792.9,40.8]
[1743783474418,3.532,1793.0,1792.9,40.8]
[1743783474611,4.64787,1793.0,1792.9,40.8]
[1743783474802,4.64787,1793.0,1792.9,44.2985]
[1743783475002,3.532,1793.0,1792.9,45.41443]
[1743783475208,5.85079,1793.2,1793.0,1.11584]
[1743783475503,5.85079,1793.2,1793.1,3.4985]
[1743783475710,1.11587,1793.0,1792.9,40.8]
[1743783475911,4.32367,1793.0,1792.9,40.8]
[1743783476314,4.88207,1793.0,1792.9,40.8]
[1743783476514,3.2078,1793.0,1792.9,41.91593]
[1743783476715,4.64784,1793.1,1793.0,1.11587]
[1743783476904,7.9428,1793.2,1793.1,1.11581]
[1743783477111,1.11577,1793.2,1793.1,1.11579]
[1743783477313,1.11581,1793.1,1793.0,4.73283]
[1743783477614,1.11581,1793.1,1793.0,4.73287]
[1743783477814,5.84969,1793.3,1793.1,1.11578]
[1743783478017,5.84969,1793.3,1792.9,40.8]
[1743783478018,1.11582,1793.1,1792.9,41.9159]
[1743783478207,4.734,1793.3,1793.0,6.40665]
[1743783478407,4.734,1793.3,1793.0,3.617]
[1743783478713,1.11581,1793.1,1793.0,3.617]
[1743783479109,4.47691,1793.1,1793.0,3.617]
[1743783479418,3.3611,1793.1,1793.0,4.73287]
[1743783479710,5.84971,1793.3,1793.0,3.617]
[1743783479912,1.11575,1793.2,1793.1,1.11576]
[1743783480209,1.11568,1793.3,1793.0,3.617]
[1743783480517,2.78962,1793.1,1792.6,1.11609]
[1743783480709,1.11605,1792.7,1792.6,3.4803]
[1743783480909,3.2078,1792.8,1792.6,3.4803]
[1743783481112,3.2078,1792.8,1792.7,1.11605]
[1743783481310,1.11605,1792.7,1792.6,3.4803]
[1743783481614,7.68494,1792.8,1792.7,1.11605]
[1743783481916,3.2078,1792.8,1792.7,1.11605]
[1743783482211,7.96976,1793.2,1792.7,5.29014]
[1743783482411,5.84973,1793.3,1793.2,1.11574]
[1743783482605,0.00836284,1793.4,1793.3,1.11568]
[1743783483307,35.161,1793.8,1793.7,1.11543]
[1743783483308,3.2078,1793.8,1793.7,1.11543]
[1743783483509,1.11537,1793.8,1793.7,1.11543]
[1743783484416,1.11541,1793.8,1793.6,1.11549]
[1743783484610,1.11537,1793.8,1793.7,3.4016]
[1743783484919,1.11537,1793.8,1793.7,44.2016]
[1743783485216,4.53817,1793.8,1793.7,44.2016]
[1743783485618,4.53817,1793.8,1793.7,40.8]
[1743783486023,1.11543,1793.7,1793.6,0.00836284]
[1743783486220,4.53823,1793.7,1793.6,0.00836284]
[1743783486711,6.6306,1793.7,1793.6,1.12385284]
[1743783486917,4.53823,1793.7,1793.6,1.12385284]
[1743783487217,0.00836284,1793.9,1793.8,1.11537]
[1743783487412,0.00836284,1793.9,1793.7,3.3622]
[1743783487714,4.32317,1793.8,1793.7,3.3622]
[1743783487919,3.4228,1794.0,1793.7,3.3622]
[1743783488111,12.75271991,1794.8,1794.7,1.11481]